fUSD/lending_fUSD_20240423
["ID","MTS","AMOUNT","RATE_DAILY","PERIOD"]
[323299528,1713881443495,-500.0,0.00011741,2]
[323299529,1713881443504,-500.0,0.00011741,2]
[323299530,1713881443514,-503.33772581,0.00011741,2]
[323299531,1713881443523,-500.0,0.00011741,2]
[323299532,1713881443532,-500.0,0.00011741,2]
[323299533,1713881443541,-523.45,0.00011741,2]
[323299534,1713881443551,-500.0,0.00011741,2]
[323299535,1713881443560,-500.0,0.00011741,2]
[323299536,1713881443569,-500.0,0.00011741,2]
[323299537,1713881443578,-500.0,0.00011741,2]
[323299538,1713881443587,-500.0,0.00011741,2]
[323299539,1713881443597,-721.15,0.00011741,2]
[323299540,1713881443606,-493.11235271,0.00011741,2]
[323299541,1713881443615,-500.0,0.00011741,2]
[323299542,1713881443624,-502.4300518,0.00011741,2]
[323299543,1713881443633,-500.0,0.00011741,2]
[323299544,1713881443643,-500.0,0.00011741,2]
[323299545,1713881443654,-500.73142562,0.00011741,2]
[323299546,1713881443663,-500.0,0.00011741,2]
[323299547,1713881443672,-500.0,0.00011741,2]
[323299548,1713881443681,-500.0,0.00011741,2]
[323299549,1713881443691,-500.0,0.00011741,2]
[323299550,1713881443700,-500.0,0.00011741,2]
[323299551,1713881443710,-500.0,0.00011741,2]
[323299552,1713881443719,-500.0,0.00011741,2]
[323299553,1713881443728,-500.0,0.00011741,2]
[323299554,1713881443738,-510.96064709,0.00011741,2]
[323299555,1713881443749,-596.19,0.00011741,2]
[323299556,1713881443758,-500.0,0.00011741,2]
[323299557,1713881443767,-500.0,0.00011741,2]
[323299558,1713881443776,-500.0,0.00011741,2]
[323299559,1713881443785,-500.0,0.00011741,2]
[323299560,1713881443794,-151.43509639,0.00011741,2]
[323299561,1713881443804,-541.16,0.00011741,2]
[323299562,1713881443814,-500.0,0.00011741,2]
[323299563,1713881443823,-500.0,0.00011741,2]
[323299564,1713881443832,-1193.26,0.00011741,2]
[323299565,1713881443842,-500.0,0.00011741,2]
[323299566,1713881443851,-500.0,0.00011741,2]
[323299567,1713881443860,-500.0,0.00011741,2]
[323299568,1713881443869,-500.0,0.00011741,2]
[323299569,1713881443877,-500.0,0.00011741,2]
[323299570,1713881443886,-500.0,0.00011741,2]
[323299571,1713881443896,-500.0,0.00011741,2]
[323299572,1713881443905,-500.10973867,0.00011741,2]
[323299573,1713881443914,-576.19,0.00011741,2]
[323299574,1713881443923,-500.0,0.00011741,2]
[323299575,1713881443932,-500.33027189,0.00011741,2]
[323299576,1713881443942,-500.0,0.00011741,2]
[323299577,1713881443951,-859.52,0.00011741,2]
[323299578,1713881443960,-648.68,0.00011741,2]
[323299579,1713881443969,-500.0,0.00011741,2]
[323299580,1713881443978,-500.0,0.00011741,2]
[323299581,1713881443987,-500.0,0.00011741,2]
[323299582,1713881443997,-539.32883583,0.00011741,2]
[323299583,1713881444006,-500.0,0.00011741,2]
[323299584,1713881444014,-500.0,0.00011741,2]
[323299585,1713881444024,-500.0,0.00011741,2]
[323299586,1713881444033,-500.0,0.00011741,2]
[323299587,1713881444042,-895.75,0.00011741,2]
[323299588,1713881444051,-500.0,0.00011741,2]
[323299589,1713881444060,-2000.94,0.00011741,2]
[323299590,1713881444069,-500.0,0.00011741,2]
[323299591,1713881444078,-500.0,0.00011741,2]
[323299592,1713881444087,-500.7748738,0.00011741,2]
[323299593,1713881444097,-500.0,0.00011741,2]
[323299594,1713881444106,-1599.82,0.00011741,2]
[323299595,1713881444115,-500.0,0.00011741,2]
[323299596,1713881444124,-500.0,0.00011741,2]
[323299597,1713881444134,-682.14,0.00011741,2]
[323299598,1713881444143,-500.0,0.00011741,2]
[323299599,1713881444152,-500.0,0.00011741,2]
[323299600,1713881444161,-500.0,0.00011741,2]
[323299601,1713881444170,-500.0,0.00011741,2]
[323299602,1713881444179,-500.0,0.00011741,2]
[323299603,1713881444188,-700.38,0.00011741,2]
[323299604,1713881444197,-500.0,0.00011741,2]
[323299605,1713881444207,-8995.29,0.00011741,2]
[323299606,1713881444216,-500.0,0.00011741,2]
[323299607,1713881444226,-276.87156345,0.00011741,2]
[323299608,1713881444236,-551.24,0.00011741,2]
[323299609,1713881444246,-504.84,0.00011741,2]
[323299610,1713881444256,-500.0,0.00011741,2]
[323299611,1713881444265,-500.0,0.00011741,2]
[323299612,1713881444274,-796.76,0.00011741,2]
[323299613,1713881444283,-500.0,0.00011741,2]
[323299614,1713881444292,-500.0,0.00011741,2]
[323299615,1713881444301,-21121.8,0.00011741,2]
[323299616,1713881444310,-503.84707921,0.00011741,2]
[323299617,1713881444319,-500.0,0.00011741,2]
[323299618,1713881444328,-500.0,0.00011741,2]
[323299619,1713881444337,-500.0,0.00011741,2]
[323299620,1713881444346,-500.0,0.00011741,2]
[323299621,1713881444355,-1009.56,0.00011741,2]
[323299622,1713881444365,-500.0,0.00011741,2]
[323299623,1713881444375,-500.0,0.00011741,2]
[323299624,1713881444384,-500.0,0.00011741,2]
[323299625,1713881444394,-765.59,0.00011741,2]
[323299626,1713881444403,-630.38,0.00011741,2]
[323299627,1713881444412,-2492.2,0.00011741,2]
[323299628,1713881444421,-500.0,0.00011741,2]
[323299629,1713881444430,-500.0,0.00011741,2]
[323299630,1713881444439,-508.32,0.00011741,2]
[323299631,1713881444450,-1145.23,0.00011741,2]
[323299632,1713881444459,-500.0,0.00011741,2]
[323299633,1713881444470,-500.0,0.00011741,2]
[323299634,1713881444479,-1230.19,0.00011741,2]
[323299635,1713881444488,-500.0,0.00011741,2]
[323299636,1713881444498,-757.79,0.00011741,2]
[323299637,1713881444507,-500.0,0.00011741,2]
[323299638,1713881444517,-500.0,0.00011741,2]
[323299639,1713881444526,-500.0,0.00011741,2]
[323299640,1713881444536,-500.0,0.00011741,2]
[323299641,1713881444545,-666.5,0.00011741,2]
[323299642,1713881444555,-500.0,0.00011741,2]
[323299643,1713881444564,-500.0,0.00011741,2]
[323299644,1713881444573,-500.0,0.00011741,2]
[323299645,1713881444582,-500.0,0.00011741,2]
[323299646,1713881444592,-500.0,0.00011741,2]
[323299647,1713881444601,-500.0,0.00011741,2]
[323299648,1713881444611,-1000.0,0.00011741,2]
[323299650,1713881444620,-973.37,0.00011741,2]
[323299651,1713881444630,-558.76,0.00011741,2]
[323299652,1713881444643,-521.67,0.00011741,2]
[323299653,1713881444654,-500.0,0.00011741,2]
[323299654,1713881444664,-500.0,0.00011741,2]
[323299655,1713881444673,-500.0,0.00011741,2]
[323299656,1713881444683,-500.0,0.00011741,2]
[323299657,1713881444692,-500.0,0.00011741,2]
[323299658,1713881444701,-500.0,0.00011741,2]
[323299659,1713881444710,-500.0,0.00011741,2]
[323299660,1713881444720,-500.0,0.00011741,2]
[323299661,1713881444730,-500.0,0.00011741,2]
[323299662,1713881444740,-1465.1,0.00011741,2]
[323299663,1713881444751,-500.0,0.00011741,2]
[323299664,1713881444761,-500.0,0.00011741,2]
[323299665,1713881444770,-500.0,0.00011741,2]
[323299666,1713881444780,-1495.47,0.00011741,2]
[323299667,1713881444789,-500.0,0.00011741,2]
[323299668,1713881444799,-1679.97,0.00011741,2]
[323299669,1713881444808,-500.0,0.00011741,2]
[323299670,1713881444817,-500.0,0.00011741,2]
[323299671,1713881444826,-500.0,0.00011741,2]
[323299672,1713881444835,-500.0,0.00011741,2]
[323299673,1713881444845,-500.0,0.00011741,2]
[323299674,1713881444853,-500.0,0.00011741,2]
[323299675,1713881444863,-500.0,0.00011741,2]
[323299676,1713881444873,-568.04,0.00011741,2]
[323299677,1713881444882,-500.0,0.00011741,2]
[323299678,1713881444891,-500.0,0.00011741,2]
[323299679,1713881444900,-500.0,0.00011741,2]
[323299680,1713881444909,-500.0,0.00011741,2]
[323299681,1713881444919,-500.0,0.00011741,2]
[323299682,1713881444928,-500.0,0.00011741,2]
[323299683,1713881444938,-500.0,0.00011741,2]
[323299684,1713881444947,-1293.17,0.00011741,2]
[323299685,1713881444956,-500.0,0.00011741,2]
[323299686,1713881444965,-500.0,0.00011741,2]
[323299687,1713881444975,-1627.27674,0.000119,2]
[323299688,1713881444984,-195.32,0.000119,2]
[323299689,1713881444993,-5894.0,0.0001197,2]
[323299690,1713881445004,-3574.13,0.0001197,2]
[323299691,1713881445013,-2706.0,0.0001197,2]
[323299692,1713881445022,-1055.0,0.0001197,2]
[323299693,1713881445032,-500.0,0.0001198,2]
[323299694,1713881445041,-1800.0,0.0001198,2]
[323299695,1713881445051,-800.0,0.0001198,2]
[323299696,1713881445060,-3069.43072971,0.00012,2]
[323299697,1713881445069,-1750.0,0.00012,2]
[323299698,1713881445078,-1394.0,0.00012012,2]
[323299699,1713881445087,-969.0,0.00012012,2]
[323299700,1713881445096,-2295.0,0.00012012,2]
[323299701,1713881445105,-462.0,0.00012012,2]
[323299702,1713881445116,-542.0,0.00012012,2]
[323299703,1713881445125,-1227.0,0.00012012,2]
[323299704,1713881445134,-636.698,0.00012012,2]
[323299705,1713881445143,-1858.0,0.00012012,2]
[323299706,1713881445153,-610.0,0.00012012,2]
[323299707,1713881445162,-437.0,0.00012012,2]
[323299708,1713881445171,-807.0,0.00012012,2]
[323299709,1713881445181,-258.0,0.00012012,2]
[323299710,1713881445190,-1597.207,0.00012012,2]
[323299711,1713881445199,-402.0,0.00012012,2]
[323299712,1713881445208,-214.0,0.00012012,2]
[323299713,1713881445217,-443.0,0.00012012,2]
[323299714,1713881445228,-195.0,0.00012012,2]
[323299715,1713881445238,-1130.0,0.00012012,2]
[323299716,1713881445247,-666.88,0.00012014,2]
[323299717,1713881445256,-662.14,0.00012014,2]
[323299718,1713881445267,-500.0,0.00012014,2]
[323299719,1713881445276,-577.85,0.00012014,2]
[323299720,1713881445286,-500.0,0.00012014,2]
[323299721,1713881445295,-1050.42,0.00012014,2]
[323299722,1713881445304,-500.0,0.00012014,2]
[323299723,1713881445313,-500.0,0.00012014,2]
[323299724,1713881445323,-500.0,0.00012014,2]
[323299725,1713881445333,-500.0,0.00012014,2]
[323299726,1713881445342,-1187.22,0.00012014,2]
[323299727,1713881445352,-500.0,0.00012014,2]
[323299728,1713881445363,-528.44,0.00012014,2]
[323299729,1713881445373,-760.45,0.00012014,2]
[323299730,1713881445382,-500.0,0.00012014,2]
[323299731,1713881445393,-500.0,0.00012014,2]
[323299732,1713881445404,-734.05,0.00012014,2]
[323299733,1713881445413,-500.0,0.00012014,2]
[323299734,1713881445424,-1036.49,0.00012014,2]
[323299735,1713881445435,-1295.46,0.00012014,2]
[323299736,1713881445445,-565.98,0.00012014,2]
[323299737,1713881445456,-500.0,0.00012014,2]
[323299738,1713881445467,-789.45,0.00012014,2]
[323299739,1713881445477,-500.0,0.00012014,2]
[323299740,1713881445488,-538.42,0.00012014,2]
[323299741,1713881445497,-607.61,0.00012014,2]
[323299742,1713881445507,-500.0,0.00012014,2]
[323299743,1713881445516,-500.0,0.00012014,2]
[323299744,1713881445527,-500.0,0.00012014,2]
[323299745,1713881445538,-500.0,0.00012014,2]
[323299746,1713881445548,-500.0,0.00012014,2]
[323299747,1713881445557,-500.0,0.00012014,2]
[323299748,1713881445567,-687.08,0.00012014,2]
[323299749,1713881445576,-18031.79,0.00012014,2]
[323299750,1713881445585,-500.0,0.00012014,2]
[323299751,1713881445594,-1675.53,0.00012014,2]
[323299752,1713881445603,-500.0,0.00012014,2]
[323299753,1713881445613,-500.0,0.00012014,2]
[323299754,1713881445623,-500.0,0.00012014,2]
[323299755,1713881445632,-500.0,0.00012014,2]
[323299756,1713881445642,-500.0,0.00012014,2]
[323299757,1713881445653,-500.0,0.00012014,2]
[323299758,1713881445663,-637.12,0.00012014,2]
[323299759,1713881445672,-973.59,0.00012014,2]
[323299760,1713881445682,-500.0,0.00012014,2]
[323299761,1713881445691,-943.17,0.00012014,2]
[323299762,1713881445701,-500.0,0.00012014,2]
[323299763,1713881445907,-500.0,0.00012014,2]
[323299764,1713881445916,-510.52,0.00012014,2]
[323299765,1713881445926,-500.0,0.00012014,2]
[323299766,1713881445937,-850.64,0.00012014,2]
[323299767,1713881445946,-920.78,0.00012014,2]
[323299769,1713881445955,-964.6,0.00012014,2]
[323299771,1713881445965,-500.0,0.00012014,2]
[323299772,1713881445974,-997.19,0.00012014,2]
[323299773,1713881445983,-500.0,0.00012014,2]
[323299774,1713881445992,-3248.43,0.00012014,2]
[323299775,1713881446004,-500.0,0.00012014,2]
[323299776,1713881446012,-500.0,0.00012014,2]
[323299777,1713881446022,-500.0,0.00012014,2]
[323299778,1713881446030,-500.0,0.00012014,2]
[323299779,1713881446039,-1034.34,0.00012014,2]
[323299780,1713881446049,-500.0,0.00012014,2]
[323299781,1713881446058,-927.86,0.00012014,2]
[323299782,1713881446068,-596.99,0.00012014,2]
[323299783,1713881446077,-1714.59,0.00012014,2]
[323299784,1713881446086,-500.0,0.00012014,2]
[323299785,1713881446095,-500.0,0.00012014,2]
[323299786,1713881446105,-818.02,0.00012014,2]
[323299787,1713881446114,-500.0,0.00012014,2]
[323299788,1713881446123,-1360.28949529,0.00012014,2]
[323299789,1713881446455,-744.53374097,0.00012014,2]
[323299790,1713881446492,-377.51676374,0.00012014,2]
[323299791,1713881446503,-274.15564908,0.00012014,2]
[323299792,1713881446515,-359.45574608,0.00012014,2]
[323299793,1713881446527,-105.52860484,0.00012014,2]
[323299794,1713881446536,-500.0,0.00012014,2]
[323299795,1713881446545,-500.0,0.00012014,2]
[323299796,1713881446554,-758.84,0.00012014,2]
[323299797,1713881446563,-600.11,0.00012014,2]
[323299798,1713881446572,-500.0,0.00012014,2]
[323299799,1713881446580,-500.0,0.00012014,2]
[323299800,1713881446589,-500.0,0.00012014,2]
[323299801,1713881446598,-2819.73,0.00012014,2]
[323299802,1713881446608,-376.15,0.00012014,2]
[323299803,1713881446617,-500.0,0.00012014,2]
[323299804,1713881446626,-500.0,0.00012014,2]
[323299805,1713881446637,-513.53,0.00012014,2]
[323299806,1713881446650,-500.0,0.00012014,2]
[323299807,1713881446659,-500.0,0.00012014,2]
[323299808,1713881446669,-500.0,0.00012014,2]
[323299809,1713881446678,-8226.17,0.00012014,2]
[323299810,1713881446688,-500.0,0.00012014,2]
[323299811,1713881446697,-623.66,0.00012014,2]
[323299812,1713881446707,-500.0,0.00012014,2]
[323299813,1713881446716,-500.0,0.00012014,2]
[323299814,1713881446727,-500.0,0.00012014,2]
[323299815,1713881446737,-785.61965513,0.00012014,2]
[323299816,1713881446749,-1073.10033886,0.00012014,2]
[323299817,1713881446761,-991.10052887,0.00012014,2]
[323299818,1713881446780,-634.23947714,0.00012014,2]
[323299819,1713881446790,-3240.27219604,0.00012014,2]
[323299820,1713881446802,-1337.75780396,0.00012014,2]
[323299821,1713881446811,-594.2,0.00012014,2]
[323299822,1713881446821,-1102.355436,0.00012014,2]
[323299823,1713881446832,-5.574564,0.00012014,2]
[323299824,1713881446842,-500.0,0.00012014,2]
[323299825,1713881446851,-428.75349093,0.00012014,2]
[323299826,1713881446862,-490.69724884,0.00012014,2]
[323299827,1713881446875,-302.93926023,0.00012014,2]
[323299828,1713881446884,-822.84934116,0.00012014,2]
[323299829,1713881447532,-808.37065884,0.00012014,2]
[323299830,1713881447542,-1351.92,0.00012014,2]
[323299831,1713881447552,-690.72,0.00012014,2]
[323299832,1713881447562,-2048.47,0.00012014,2]
[323299833,1713881447571,-543.96,0.00012014,2]
[323299834,1713881447581,-1991.2,0.00012014,2]
[323299835,1713881447590,-500.0,0.00012014,2]
[323299836,1713881447599,-566.56,0.00012014,2]
[323299837,1713881447609,-1556.31,0.00012014,2]
[323299838,1713881447619,-787.33,0.00012014,2]
[323299839,1713881447628,-525.36,0.00012014,2]
[323299840,1713881447641,-2005.8,0.00012014,2]
[323299841,1713881447651,-4410.99,0.00012014,2]
[323299842,1713881447660,-861.88,0.00012014,2]
[323299843,1713881447669,-608.66,0.00012014,2]
[323299844,1713881447679,-1825.57,0.00012014,2]
[323299845,1713881447688,-1010.39,0.00012014,2]
[323299846,1713881447698,-500.0,0.00012014,2]
[323299847,1713881447707,-887.5,0.00012014,2]
[323299848,1713881447716,-577.41,0.00012014,2]
[323299849,1713881447727,-2165.36,0.00012014,2]
[323299850,1713881447736,-500.0,0.00012014,2]
[323299851,1713881447746,-500.0,0.00012014,2]
[323299852,1713881447756,-500.0,0.00012014,2]
[323299853,1713881447766,-500.0,0.00012014,2]
[323299854,1713881447776,-500.0,0.00012014,2]
[323299855,1713881447785,-500.0,0.00012014,2]
[323299856,1713881447794,-637.33,0.00012014,2]
[323299857,1713881447803,-500.0,0.00012014,2]
[323299858,1713881447813,-1071.26,0.00012014,2]
[323299859,1713881447822,-6002.69,0.00012014,2]
[323299860,1713881447831,-596.78,0.00012015,2]
[323299861,1713881447840,-500.0,0.00012015,2]
[323299862,1713881447850,-500.0,0.00012015,2]
[323299863,1713881447860,-500.0,0.00012015,2]
[323299864,1713881447870,-500.0,0.00012015,2]
[323299865,1713881447879,-500.0,0.00012015,2]
[323299866,1713881447889,-500.0,0.00012015,2]
[323299867,1713881447898,-500.0,0.00012015,2]
[323299868,1713881447907,-500.0,0.00012015,2]
[323299869,1713881447917,-772.48,0.00012015,2]
[323299870,1713881447926,-500.0,0.00012015,2]
[323299871,1713881447935,-500.0,0.00012015,2]
[323299872,1713881447944,-500.0,0.00012015,2]
[323299873,1713881447953,-500.0,0.00012015,2]
[323299874,1713881447962,-500.0,0.00012015,2]
[323299875,1713881447972,-500.0,0.00012015,2]
[323299876,1713881447981,-500.0,0.00012015,2]
[323299877,1713881447990,-500.0,0.00012015,2]
[323299878,1713881448000,-500.0,0.00012015,2]
[323299879,1713881448010,-500.0,0.00012015,2]
[323299880,1713881448076,-500.0,0.00012015,2]
[323299881,1713881448085,-501.37,0.00012015,2]
[323299882,1713881448095,-500.0,0.00012015,2]
[323299883,1713881448104,-500.0,0.00012015,2]
[323299884,1713881448113,-229.11,0.00012015,2]
[323299885,1713881448123,-500.0,0.00012015,2]
[323299886,1713881448131,-500.0,0.00012015,2]
[323299887,1713881448140,-824.72,0.00012015,2]
[323299888,1713881448150,-500.0,0.00012015,2]
[323299889,1713881448159,-500.0,0.00012015,2]
[323299890,1713881448168,-500.0,0.00012015,2]
[323299891,1713881448177,-500.0,0.00012015,2]
[323299892,1713881448187,-504.89,0.00012015,2]
[323299893,1713881448195,-500.0,0.00012015,2]
[323299894,1713881448204,-500.0,0.00012015,2]
[323299895,1713881448213,-245.85089135,0.00012015,2]
[323299896,1713881448222,-500.0,0.00012015,2]
[323299897,1713881448232,-1172.37,0.00012015,2]
[323299898,1713881448243,-500.0,0.00012015,2]
[323299899,1713881448253,-535.55,0.00012015,2]
[323299900,1713881448262,-507.69,0.00012015,2]
[323299901,1713881448271,-500.0,0.00012015,2]
[323299902,1713881448282,-500.0,0.00012015,2]
[323299903,1713881448291,-500.0,0.00012015,2]
[323299904,1713881448302,-500.0,0.00012015,2]
[323299905,1713881448311,-500.0,0.00012015,2]
[323299906,1713881448320,-500.0,0.00012015,2]
[323299907,1713881448331,-500.0,0.00012015,2]
[323299908,1713881448344,-168.86,0.00012015,2]
[323299909,1713881448353,-781.53,0.00012015,2]
[323299910,1713881448362,-500.0,0.00012015,2]
[323299911,1713881448371,-195.44576082,0.00012015,2]
[323299912,1713881448381,-500.0,0.00012015,2]
[323299913,1713881448391,-780.47,0.00012015,2]
[323299914,1713881448399,-500.0,0.00012015,2]
[323299915,1713881448408,-500.0,0.00012015,2]
[323299916,1713881448417,-599.15,0.00012015,2]
[323299917,1713881448426,-500.0,0.00012015,2]
[323299918,1713881448435,-242.59,0.00012015,2]
[323299919,1713881448444,-500.0,0.00012015,2]
[323299920,1713881448453,-500.0,0.00012015,2]
[323299921,1713881448462,-578.87,0.00012015,2]
[323299922,1713881448471,-744.94,0.00012015,2]
[323299923,1713881448481,-500.0,0.00012015,2]
[323299924,1713881448489,-500.0,0.00012015,2]
[323299925,1713881448498,-410.37,0.00012015,2]
[323299926,1713881448509,-723.83,0.00012015,2]
[323299927,1713881448518,-500.0,0.00012015,2]
[323299928,1713881448527,-500.0,0.00012015,2]
[323299929,1713881448535,-500.0,0.00012015,2]
[323299930,1713881448544,-711.07,0.00012015,2]
[323299931,1713881448554,-500.0,0.00012015,2]
[323299932,1713881448563,-500.0,0.00012015,2]
[323299933,1713881448571,-500.0,0.00012015,2]
[323299934,1713881448580,-518.26,0.00012015,2]
[323299935,1713881448590,-500.0,0.00012015,2]
[323299936,1713881448598,-500.0,0.00012015,2]
[323299937,1713881448607,-500.0,0.00012015,2]
[323299938,1713881448616,-500.0,0.00012015,2]
[323299939,1713881448625,-559.2,0.00012015,2]
[323299940,1713881448635,-500.0,0.00012015,2]
[323299941,1713881448647,-500.0,0.00012015,2]
[323299942,1713881448656,-500.0,0.00012015,2]
[323299943,1713881448665,-500.0,0.00012015,2]
[323299944,1713881448674,-500.0,0.00012015,2]
[323299945,1713881448683,-500.0,0.00012015,2]
[323299946,1713881448693,-500.0,0.00012015,2]
[323299947,1713881448702,-500.0,0.00012015,2]
[323299948,1713881448711,-508.75,0.00012015,2]
[323299949,1713881448719,-500.0,0.00012015,2]
[323299950,1713881448730,-500.0,0.00012015,2]
[323299951,1713881448739,-500.0,0.00012015,2]
[323299952,1713881448748,-500.0,0.00012015,2]
[323299953,1713881448758,-500.0,0.00012015,2]
[323299954,1713881448769,-500.0,0.00012015,2]
[323299955,1713881448779,-500.0,0.00012015,2]
[323299956,1713881448788,-500.0,0.00012015,2]
[323299957,1713881448797,-500.0,0.00012015,2]
[323299958,1713881448807,-500.0,0.00012015,2]
[323299959,1713881448816,-500.0,0.00012015,2]
[323299960,1713881448825,-500.0,0.00012015,2]
[323299961,1713881448835,-500.0,0.00012015,2]
[323299962,1713881448844,-578.36,0.00012015,2]
[323299963,1713881448853,-500.0,0.00012015,2]
[323299964,1713881448862,-500.0,0.00012015,2]
[323299965,1713881448871,-287.23,0.00012015,2]
[323299966,1713881448880,-500.0,0.00012015,2]
[323299967,1713881448889,-500.0,0.00012015,2]
[323299968,1713881448899,-562.49,0.00012015,2]
[323299969,1713881448908,-500.0,0.00012015,2]
[323299970,1713881448917,-500.0,0.00012015,2]
[323299971,1713881448926,-500.0,0.00012015,2]
[323299972,1713881448935,-500.0,0.00012015,2]
[323299973,1713881448944,-442.44,0.00012015,2]
[323299974,1713881448954,-614.6,0.00012015,2]
[323299975,1713881448963,-500.0,0.00012015,2]
[323299976,1713881448972,-776.76,0.00012015,2]
[323299977,1713881448982,-740.69,0.00012015,2]
[323299978,1713881448991,-500.0,0.00012015,2]
[323299979,1713881449005,-500.0,0.00012015,2]
[323299980,1713881449014,-500.0,0.00012015,2]
[323299981,1713881449023,-500.0,0.00012015,2]
[323299982,1713881449032,-500.0,0.00012015,2]
[323299983,1713881449043,-222.22,0.00012015,2]
[323299984,1713881449053,-521.9,0.00012015,2]
[323299985,1713881449063,-500.0,0.00012015,2]
[323299986,1713881449072,-500.0,0.00012015,2]
[323299987,1713881449080,-637.38,0.00012015,2]
[323299988,1713881449089,-500.0,0.00012015,2]
[323299989,1713881449098,-500.0,0.00012015,2]
[323299990,1713881449107,-431.28,0.00012015,2]
[323299991,1713881449115,-500.0,0.00012015,2]
[323299992,1713881449124,-544.33,0.00012015,2]
[323299993,1713881449133,-500.0,0.00012015,2]
[323299994,1713881449142,-500.0,0.00012015,2]
[323299995,1713881449152,-500.0,0.00012015,2]
[323299996,1713881449161,-500.0,0.00012015,2]
[323299997,1713881449170,-500.0,0.00012015,2]
[323299998,1713881449179,-500.0,0.00012015,2]
[323299999,1713881449188,-500.0,0.00012015,2]
[323300000,1713881449197,-721.15,0.00012015,2]
[323300001,1713881449207,-500.0,0.00012015,2]
[323300002,1713881449216,-500.0,0.00012015,2]
[323300003,1713881449225,-500.0,0.00012015,2]
[323300004,1713881449234,-500.0,0.00012015,2]
[323300005,1713881449244,-500.0,0.00012015,2]
[323300006,1713881449254,-500.0,0.00012015,2]
[323300007,1713881449263,-500.0,0.00012015,2]
[323300008,1713881449272,-500.0,0.00012015,2]
[323300009,1713881449281,-596.19,0.00012015,2]
[323300010,1713881449291,-500.0,0.00012015,2]
[323300011,1713881449300,-500.0,0.00012015,2]
[323300012,1713881449309,-1193.26,0.00012015,2]
[323300013,1713881449318,-500.0,0.00012015,2]
[323300014,1713881449327,-576.19,0.00012015,2]
[323300015,1713881449337,-859.52,0.00012015,2]
[323300016,1713881449348,-500.0,0.00012015,2]
[323300017,1713881449357,-895.75,0.00012015,2]
[323300018,1713881449367,-500.0,0.00012015,2]
[323300019,1713881449376,-2000.94,0.00012015,2]
[323300020,1713881449385,-500.0,0.00012015,2]
[323300021,1713881449394,-1599.82,0.00012015,2]
[323300022,1713881449403,-682.14,0.00012015,2]
[323300023,1713881449413,-500.0,0.00012015,2]
[323300024,1713881449422,-500.0,0.00012015,2]
[323300025,1713881449431,-500.0,0.00012015,2]
[323300026,1713881449440,-700.38,0.00012015,2]
[323300027,1713881449450,-8995.29,0.00012015,2]
[323300028,1713881449460,-500.0,0.00012015,2]
[323300029,1713881449469,-551.24,0.00012015,2]
[323300030,1713881449478,-504.84,0.00012015,2]